bitfinex/quotes_SOLUSD_20260224
["timestamp","ask_amount","ask_price","bid_price","bid_amount"]
[1771929757466,13.05953485,76.573,76.541,0.4837264]
[1771929757764,0.45036521,76.572,76.541,0.4837264]
[1771929760267,13.05977458,76.571,76.543,0.4837264]
[1771929760766,0.45036521,76.57,76.543,0.4837264]
[1771929764457,13.06011571,76.569,76.545,0.4837264]
[1771929765878,13.51048092,76.569,76.545,0.4837264]
[1771929766072,0.45036521,76.568,76.545,0.4837264]
[1771929771191,0.45036521,76.568,76.547,0.4837264]
[1771929771987,13.06045685,76.567,76.547,0.4837264]
[1771929773071,13.05909239,76.575,76.55,5.25173843]
[1771929773280,13.05909239,76.575,76.551,0.4837264]
[1771929773471,3.69383402,76.581,76.551,0.4837264]
[1771929773683,13.05704623,76.587,76.52,5.25173843]
[1771929773684,0.45036521,76.586,76.56,5.25173843]
[1771929773871,0.45036521,76.586,76.561,0.4837264]
[1771929777973,5.25173843,76.59,76.561,0.4837264]
[1771929777974,0.4969344,76.584,76.561,0.4837264]
[1771929780466,0.4969344,76.595,76.561,0.4837264]
[1771929780667,0.4969344,76.595,76.571,0.49916305]
[1771929781190,13.05363739,76.607,76.571,0.49916305]
[1771929781191,0.4969344,76.6,76.571,0.49916305]
[1771929781991,13.05500071,76.599,76.573,0.49916305]
[1771929782171,13.55193511,76.599,76.573,0.49916305]
[1771929782575,0.4969344,76.589,76.564,13.06084426]
[1771929782776,0.4969344,76.589,76.562,0.49916305]
[1771929783391,0.4969344,76.589,76.52,61.2188604]
[1771929783392,0.4969344,76.589,76.564,0.49916305]
[1771929784189,0.4969344,76.587,76.564,0.49916305]
[1771929784389,0.4969344,76.587,76.566,0.49916305]
[1771929786077,0.4969344,76.585,76.561,13.56054688]
[1771929786377,0.4969344,76.585,76.554,32.65641396]
[1771929786378,0.4969344,76.585,76.562,0.49916305]
[1771929787483,0.4969344,76.583,76.562,0.49916305]
[1771929789810,13.05789872,76.582,76.562,0.49916305]
[1771929790105,13.55483312,76.582,76.562,0.49916305]
[1771929790694,0.4969344,76.581,76.562,0.49916305]
[1771929791678,32.6430418,76.586,76.562,0.49916305]
[1771929791679,0.4969344,76.579,76.562,0.49916305]
[1771929794085,13.05858079,76.578,76.562,0.49916305]
[1771929795404,0.4969344,76.577,76.553,0.49916305]
[1771929796196,0.4969344,76.575,76.554,13.06267471]
[1771929796399,0.4969344,76.575,76.555,0.49916305]
[1771929800487,0.4969344,76.573,76.547,0.49916305]
[1771929802813,0.4969344,76.573,76.549,0.46707296]
[1771929803012,0.47194582,76.569,76.522,0.46707296]
[1771929803216,0.47194582,76.569,76.531,0.46707296]
[1771929803707,0.47194582,76.559,76.531,0.46707296]
[1771929803911,0.47194582,76.549,76.522,0.46707296]
[1771929805494,0.46393563,76.539,76.517,0.48397007]
[1771929806605,0.46393563,76.537,76.517,0.48397007]
[1771929807898,0.46393563,76.535,76.505,0.48397007]
[1771929808315,0.46393563,76.529,76.505,0.48397007]
[1771929808909,0.46393563,76.529,76.5,0.58397007]
[1771929809306,5.24736065,76.52,76.5,0.58397007]
[1771929809597,0.46393563,76.519,76.5,0.58397007]
[1771929810215,13.53275603,76.518,76.5,0.58397007]
[1771929811818,0.46393563,76.523,76.5,0.58397007]
[1771929813003,13.06813726,76.522,76.5,0.58397007]
[1771929813198,3.49,77.671,76.511,0.48397007]
[1771929813199,0.46393563,76.542,76.511,0.48397007]
[1771929813409,13.06455195,76.543,76.52,5.24736065]
[1771929813611,13.06455195,76.543,76.521,0.48397007]
[1771929813803,5.24736065,76.56,76.52,5.24736065]
[1771929813804,0.46393563,76.553,76.522,0.48397007]
[1771929814712,0.46393563,76.561,76.531,0.48397007]
[1771929815022,0.46393563,76.566,76.531,0.48397007]
[1771929815217,13.06079801,76.565,76.541,0.48397007]
[1771929817821,0.46393563,76.569,76.541,0.48397007]
[1771929821002,13.06028628,76.568,76.541,0.48397007]
[1771929823223,0.46393563,76.568,76.541,0.48397007]
[1771929825022,13.06045685,76.567,76.543,0.48397007]
[1771929825725,13.52439248,76.567,76.543,0.48397007]
[1771929826920,32.64733766,76.576,76.543,0.48397007]
[1771929826921,0.46393563,76.575,76.543,0.48397007]
[1771929827128,13.05841026,76.579,76.561,0.48397007]
[1771929827801,0.46393563,76.578,76.561,0.48397007]
[1771929828212,0.46393563,76.578,76.55,5.24736065]
[1771929828415,0.46393563,76.569,76.541,13.06489332]
[1771929830225,0.46393563,76.567,76.542,0.48397007]
[1771929833631,0.46393563,76.565,76.542,0.48397007]
[1771929834032,0.46393563,76.565,76.54,5.24736065]
[1771929834234,0.46393563,76.565,76.541,13.06489332]
[1771929834524,0.46393563,76.565,76.542,0.48397007]
[1771929835133,0.46393563,76.565,76.537,13.52808277]
[1771929835331,0.46393563,76.565,76.532,13.52899082]
[1771929835511,0.46393563,76.565,76.533,0.46258405]
[1771929835711,45.71219601,76.566,76.53,5.24736065]
[1771929835712,0.47122362,76.563,76.535,0.46258405]
[1771929836622,0.47122362,76.563,76.534,13.06608827]
[1771929837012,45.7133901,76.564,76.534,0.46258405]
[1771929837013,0.47122362,76.561,76.534,0.46258405]
[1771929839537,0.47122362,76.559,76.534,0.46258405]
[1771929845033,0.47122362,76.575,76.551,0.46258405]
[1771929848339,0.47122362,76.58,76.553,0.46258405]
[1771929850828,0.47122362,76.578,76.555,0.46258405]
[1771929854232,0.47122362,76.578,76.557,0.46258405]
[1771929855851,3.69383402,76.598,76.556,13.06233345]
[1771929855852,5.24736065,76.61,76.571,0.46258405]
[1771929856535,13.05329661,76.609,76.581,0.46258405]
[1771929857643,13.05329661,76.609,76.572,45.70861411]
[1771929857644,13.05329661,76.609,76.591,0.46258405]
[1771929857840,0.47122362,76.608,76.591,0.46258405]
[1771929859734,3.69383402,76.628,76.591,0.46258405]
[1771929859933,0.47122362,76.628,76.601,0.46258405]
[1771929860550,13.05023033,76.627,76.601,0.46258405]
[1771929860750,13.52145395,76.627,76.601,0.46258405]
[1771929860947,0.47122362,76.627,76.611,0.46258405]
[1771929861350,13.52145395,76.627,76.611,0.46258405]
[1771929861555,0.47122362,76.626,76.601,0.46258405]
[1771929861743,0.47122362,76.624,76.596,13.05551203]
[1771929862142,0.47122362,76.619,76.59,5.24351161]
[1771929862546,0.47122362,76.619,76.591,0.46258405]
[1771929863356,0.47122362,76.619,76.592,0.46258405]
[1771929868164,0.45225247,76.617,76.611,1.45792455]
[1771929870281,0.45225247,76.617,76.6,0.47410142]
[1771929874480,0.45225247,76.615,76.6,0.47410142]
[1771929879780,0.45225247,76.615,76.601,0.47410142]
[1771929880496,0.45225247,76.615,76.591,0.47410142]
[1771929880685,0.45225247,76.614,76.592,0.47410142]
[1771929882800,0.45225247,76.614,76.594,0.47410142]
[1771929885002,0.2,76.63,76.601,0.47410142]
[1771929885200,0.2,76.63,76.595,45.97921183]
[1771929885201,0.45225247,76.628,76.611,0.47410142]
[1771929895711,0.46331877,76.626,76.611,0.47410142]
[1771929897311,0.46331877,76.624,76.602,0.487997]
[1771929900009,0.46331877,76.624,76.604,0.487997]
[1771929900210,0.46331877,76.624,76.61,5.24351161]
[1771929900407,0.2,76.63,76.611,0.487997]
[1771929900620,0.46331877,76.629,76.611,0.487997]
[1771929900994,0.2,76.63,76.611,0.487997]
[1771929901703,13.04843153,76.638,76.621,0.487997]
[1771929901900,0.2,76.65,76.604,0.28432314]
[1771929901901,0.2,76.65,76.63,5.24351161]
[1771929902098,0.2,76.65,76.606,0.28432314]
[1771929902099,0.46331877,76.648,76.62,5.24351161]
[1771929903903,13.24646623,76.65,76.632,0.487997]
[1771929904104,13.24646623,76.65,76.63,5.24351161]
[1771929904513,13.74402586,76.65,76.63,5.24351161]
[1771929904722,13.74402586,76.65,76.621,13.05125226]
[1771929904723,0.49755963,76.649,76.621,13.05125226]
[1771929906921,13.24646623,76.65,76.621,13.05125226]
[1771929906922,0.49755963,76.647,76.621,13.05125226]
[1771929911518,0.49755963,76.639,76.61,5.24351161]
[1771929917312,0.49755963,76.638,76.61,5.23906794]
[1771929918621,0.49755963,76.648,76.63,7.9e-06]
[1771929919105,0.2,76.65,76.63,7.9e-06]
[1771929919307,0.2,76.65,76.64,5.23906794]
[1771929921127,0.2,76.65,76.631,13.04954913]
[1771929924528,0.49755963,76.649,76.631,13.04954913]
[1771929930537,0.2,76.65,76.631,45.67342197]
[1771929931935,0.49755963,76.649,76.631,45.67342197]
[1771929932324,0.49755963,76.649,76.631,13.04954913]
[1771929932532,0.49755963,76.647,76.62,5.23906794]
[1771929932732,0.49755963,76.647,76.621,45.67933813]
[1771929935541,13.04699527,76.646,76.621,13.05125226]
[1771929935746,0.49755963,76.645,76.611,13.05295584]
[1771929937042,0.49755963,76.645,76.62,5.23906794]
[1771929937242,0.49755963,76.645,76.612,0.28432314]
[1771929937243,0.69755963,76.65,76.63,5.23906794]
[1771929937456,0.2,76.65,76.64,5.23906794]
[1771929937639,0.49755963,76.649,76.631,13.04954913]
[1771929937831,0.49755963,76.648,76.62,5.23906794]
[1771929939750,0.49755963,76.648,76.623,13.05090915]
[1771929942149,0.49755963,76.648,76.623,13.05090915]
[1771929945652,0.49755963,76.648,76.63,5.23906794]
[1771929946832,0.49755963,76.648,76.623,13.05090915]
[1771929947643,0.49755963,76.646,76.623,13.05090915]
[1771929948655,0.49755963,76.639,76.593,13.05602339]
[1771929948954,0.49755963,76.639,76.59,5.23906794]
[1771929948955,5.23906794,76.61,76.571,13.05977458]
[1771929949157,5.23906794,76.64,76.6,5.23906794]
[1771929949452,45.66388768,76.647,76.611,0.4518422]
[1771929949653,45.66388768,76.647,76.612,13.50462766]
[1771929949850,45.66388768,76.647,76.612,0.4518422]
[1771929950045,45.66388768,76.647,76.612,13.50462766]
[1771929950353,45.66388768,76.647,76.612,0.4518422]
[1771929951052,45.66388768,76.647,76.608,13.05331903]
[1771929951354,0.4512814,76.646,76.608,13.05331903]
[1771929951854,0.4512814,76.644,76.608,0.4518422]
[1771929952759,0.4512814,76.637,76.609,13.05329661]
[1771929954352,0.4512814,76.637,76.61,0.4518422]
[1771929957042,13.04869773,76.636,76.61,0.4518422]
[1771929957237,0.46134676,76.635,76.61,0.4518422]
[1771929959746,13.04903828,76.634,76.61,0.4518422]
[1771929959974,0.46134676,76.633,76.61,0.4518422]
[1771929963363,0.46134676,76.631,76.611,13.05295584]
[1771929963864,0.46134676,76.631,76.609,0.45479346]
[1771929965764,0.46134676,76.631,76.611,0.45479346]
[1771929968753,0.46134676,76.631,76.612,13.05278546]
[1771929969049,0.46134676,76.641,76.613,0.45479346]
[1771929971252,0.46134676,76.641,76.614,13.05244472]
[1771929971456,0.46134676,76.641,76.615,0.45479346]
[1771929977355,0.46134676,76.641,76.617,0.45479346]
[1771929978560,0.46134676,76.641,76.619,0.45479346]
[1771929978749,0.46134676,76.641,76.621,0.45479346]
[1771929980565,0.46134676,76.645,76.622,13.05108193]
[1771929980766,0.46134676,76.645,76.623,0.45479346]
[1771929983298,0.46134676,76.645,76.602,65.27221124]
[1771929983299,0.2,76.66,76.631,0.28432314]
[1771929983583,13.04050769,76.685,76.65,5.23907361]
[1771929983786,38.03807126,76.69,76.661,0.48604587]
[1771929983787,0.46134676,76.68,76.661,0.48604587]
[1771929984984,0.46134676,76.68,76.661,0.4904091]
[1771929985385,38.03807126,76.69,76.671,0.4904091]
[1771929985386,0.48662505,76.689,76.671,0.4904091]
[1771929985586,0.48662505,76.689,76.663,0.4904091]
[1771929985771,0.48662505,76.689,76.662,13.04427226]
[1771929986166,0.48662505,76.689,76.658,13.04483926]
[1771929986167,0.48662505,76.688,76.658,13.04483926]
[1771929986373,0.48662505,76.688,76.658,13.53524836]
[1771929986585,0.48662505,76.688,76.659,0.4904091]
[1771929987378,0.48662505,76.679,76.653,13.04568534]
[1771929988775,0.48662505,76.679,76.64,5.72948271]
[1771929988983,0.48662505,76.679,76.642,0.4904091]
[1771929990377,0.48662505,76.677,76.651,0.4904091]
[1771929990995,0.37293484,76.677,76.651,0.4904091]
[1771929992196,0.37293484,76.677,76.643,13.04750596]
[1771929992197,13.04189055,76.676,76.644,0.4904091]
[1771929992391,5.23907361,76.67,76.635,0.77473224]
[1771929992598,13.04189055,76.676,76.64,5.23907361]
[1771929992795,13.04189055,76.676,76.641,0.4904091]
[1771929993000,0.48662505,76.675,76.641,0.4904091]
[1771929993599,0.48662505,76.673,76.642,13.0476762]
[1771929993805,0.48662505,76.673,76.643,0.4904091]
[1771929994704,0.48662505,76.669,76.631,0.4904091]
[1771929998004,0.48662505,76.667,76.633,0.4904091]
[1771930001705,0.48662505,76.665,76.633,0.4904091]
[1771930001891,0.48662505,76.659,76.632,13.04937884]
[1771930002090,0.48662505,76.659,76.633,0.4904091]
[1771930003604,13.5288707,76.674,76.651,0.4904091]
[1771930003802,0.48662505,76.674,76.653,0.4904091]
[1771930004810,0.48662505,76.68,76.661,0.4904091]
[1771930005402,13.04138029,76.679,76.661,0.4904091]
[1771930005590,0.48662505,76.678,76.661,0.4904091]
[1771930009310,13.04172046,76.677,76.661,0.4904091]
[1771930009897,13.04122121,76.68,76.661,0.4904091]
[1771930010412,0.48662505,76.679,76.661,0.4904091]
[1771930012550,0.48662505,76.679,76.656,0.4904091]
[1771930016027,0.48417722,76.677,76.657,0.45959196]
[1771930018719,0.48417722,76.675,76.657,0.45959196]
[1771930019522,0.48417722,76.675,76.66,5.23907361]
[1771930020050,0.48417722,76.675,76.659,0.45959196]
[1771930020403,0.48417722,76.689,76.661,0.45959196]
[1771930020608,0.48417722,76.689,76.671,0.45959196]
[1771930020818,0.2,76.69,76.673,0.45959196]
[1771930021522,0.2,76.69,76.68,5.23907361]
[1771930021717,0.2,76.69,76.68,5.69866557]
[1771930022723,0.2,76.69,76.681,0.45959196]
[1771930022905,0.48417722,76.699,76.682,0.45959196]
[1771930023317,13.03731098,76.703,76.667,32.6083751]
[1771930023318,0.48417722,76.697,76.677,0.45959196]
[1771930023821,0.48417722,76.697,76.677,13.5012171]
[1771930024221,0.48417722,76.697,76.68,5.23907361]
[1771930027026,0.48417722,76.697,76.68,18.28024021]
[1771930027422,0.48417722,76.697,76.68,18.73983217]
[1771930028218,0.48417722,76.697,76.682,13.04087008]
[1771930028416,0.2,76.71,76.682,13.04087008]
[1771930028417,0.48417722,76.708,76.691,0.45959196]
[1771930028720,0.2,76.72,76.701,0.45959196]
[1771930028721,0.48417722,76.719,76.701,0.45959196]
[1771930028922,0.48417722,76.719,76.7,4.2781747]
[1771930029118,0.48417722,76.719,76.682,13.04087008]
[1771930029119,0.48417722,76.709,76.682,13.04087008]
[1771930029332,0.48417722,76.709,76.674,13.0421635]
[1771930029721,0.48417722,76.709,76.674,13.50175546]
[1771930030628,0.48417722,76.707,76.674,13.50175546]
[1771930030817,0.48417722,76.707,76.674,13.0421635]
[1771930031436,0.48417722,76.699,76.674,13.0421635]
[1771930032517,0.48417722,76.699,76.661,13.04444241]
[1771930032720,0.48417722,76.689,76.661,13.04444241]
[1771930035236,0.48417722,76.687,76.66,5.23907361]
[1771930035619,0.48417722,76.687,76.656,13.04529325]
[1771930039224,0.48417722,76.685,76.65,18.73985726]
[1771930041131,0.48417722,76.685,76.65,13.50590637]
[1771930041334,5.23395089,76.67,76.641,0.45959196]
[1771930041524,0.48417722,76.669,76.641,0.45959196]
[1771930042023,0.48417722,76.669,76.641,13.50743841]
[1771930042236,0.48417722,76.669,76.642,0.45959196]
[1771930042442,13.03831962,76.697,76.661,0.45959196]
[1771930042741,13.03831962,76.697,76.67,5.23395089]
[1771930042950,13.03831962,76.697,76.668,0.45959196]
[1771930043654,45.63411867,76.697,76.668,0.45959196]
[1771930044429,0.46593247,76.696,76.668,0.45959196]
[1771930046741,0.48377967,76.694,76.67,0.48810151]
[1771930047041,0.48377967,76.694,76.671,0.48810151]
[1771930048445,0.48377967,76.694,76.665,0.48810151]
[1771930049731,45.63530868,76.695,76.665,0.48810151]
[1771930049732,0.48377967,76.692,76.665,0.48810151]
[1771930050630,0.48377967,76.69,76.666,0.48810151]
[1771930053531,0.48377967,76.69,76.667,13.04342155]
[1771930053731,0.48377967,76.688,76.667,13.04342155]
[1771930054536,0.48377967,76.688,76.668,0.48810151]
[1771930056552,0.48377967,76.686,76.651,0.48810151]
[1771930056854,0.48377967,76.669,76.64,0.48810151]
[1771930057544,0.48377967,76.669,76.642,13.53563051]
[1771930057850,0.48377967,76.669,76.643,0.48810151]
[1771930059443,0.48377967,76.667,76.643,0.48810151]
[1771930060155,0.48377967,76.667,76.645,0.48810151]
[1771930062253,13.04359168,76.666,76.645,0.48810151]
[1771930062558,0.48377967,76.665,76.645,0.48810151]
[1771930065659,0.48377967,76.663,76.645,0.48810151]
[1771930065859,0.48377967,76.659,76.633,0.48810151]
[1771930066545,0.48377967,76.659,76.625,13.05054765]
[1771930066546,0.48377967,76.659,76.627,0.48810151]
[1771930066754,0.48377967,76.649,76.627,0.48810151]
[1771930069446,0.48377967,76.647,76.627,0.48810151]
[1771930071858,13.04699527,76.646,76.627,0.48810151]
[1771930072068,0.48377967,76.645,76.627,0.48810151]
[1771930072945,0.48377967,76.649,76.627,0.48810151]
[1771930074256,32.61311847,76.657,76.627,0.48810151]
[1771930074257,0.48377967,76.647,76.627,0.48810151]
[1771930076957,0.47247811,76.645,76.627,0.48810151]
[1771930078264,0.47247811,76.643,76.627,0.48810151]
[1771930080473,0.47247811,76.643,76.6,5.23395089]
[1771930080474,0.47247811,76.641,76.605,0.49454372]
[1771930080649,0.47247811,76.639,76.605,0.49454372]
[1771930081049,0.47247811,76.619,76.598,0.49454372]
[1771930081655,0.47247811,76.609,76.58,0.1]
[1771930081851,0.47247811,76.609,76.583,0.49454372]
[1771930082052,0.47247811,76.619,76.591,13.05636432]
[1771930082253,0.47247811,76.617,76.6,5.23395089]
[1771930082452,13.05176329,76.618,76.601,0.49454372]
[1771930083968,0.47247811,76.619,76.601,0.49454372]
[1771930084564,32.62742193,76.623,76.601,0.49454372]
[1771930084765,0.47247811,76.622,76.601,0.49454372]
[1771930087064,13.05125226,76.621,76.601,0.49454372]
[1771930090171,32.62742193,76.623,76.601,0.49454372]
[1771930092579,0.47247811,76.622,76.601,0.49454372]
[1771930093471,0.47247811,76.619,76.597,0.49454372]
[1771930093676,32.62742193,76.623,76.59,0.1]
[1771930093677,0.47247811,76.609,76.59,0.1]
[1771930094282,0.47247811,76.607,76.59,0.1]
[1771930099288,45.68832727,76.606,76.59,0.1]
[1771930099487,0.47247811,76.605,76.59,0.1]
[1771930100990,0.47247811,76.603,76.59,0.1]
[1771930105274,0.49281231,76.601,76.59,0.1]
[1771930105595,0.49281231,76.599,76.58,0.1]
[1771930105781,0.49281231,76.589,76.58,0.1]
[1771930106170,0.49281231,76.589,76.567,0.49534991]
[1771930107195,13.05619385,76.592,76.567,0.49534991]
[1771930109696,0.49281231,76.592,76.567,0.49534991]
[1771930109904,33.13226596,76.595,76.567,0.49534991]
[1771930110123,0.49281231,76.594,76.567,0.49534991]
[1771930115708,0.49281231,76.589,76.567,0.49534991]
[1771930116288,0.49281231,76.592,76.567,0.49534991]
[1771930117697,13.54917663,76.591,76.567,0.49534991]
[1771930117888,0.49281231,76.59,76.567,0.49534991]
[1771930121200,13.05670527,76.589,76.567,0.49534991]
[1771930122500,0.49281231,76.596,76.567,0.49534991]
[1771930122715,0.49281231,76.639,76.591,0.49534991]
[1771930122907,0.49281231,76.639,76.611,0.49534991]
[1771930123414,0.49281231,76.637,76.611,0.49534991]
[1771930125405,0.49281231,76.627,76.601,0.49534991]
[1771930129720,0.49281231,76.625,76.601,0.49534991]
[1771930130308,3.69383402,76.647,76.602,0.49534991]
[1771930130309,13.04886801,76.635,76.602,0.49534991]
[1771930130608,13.04886801,76.635,76.611,0.49534991]
[1771930133015,0.49281231,76.629,76.59,5.24488426]
[1771930135026,0.4543171,76.627,76.601,0.46554603]
[1771930136026,0.4543171,76.625,76.601,0.46554603]
[1771930138428,0.4543171,76.623,76.601,0.46554603]
[1771930139830,13.05108193,76.622,76.601,0.46554603]
[1771930140029,0.4543171,76.621,76.601,0.46554603]
[1771930140326,0.4543171,76.619,76.58,5.71043029]
[1771930140528,0.4543171,76.619,76.581,0.46554603]
[1771930142838,13.05176329,76.618,76.591,0.46554603]
[1771930143429,13.05125782,76.621,76.591,0.46554603]
[1771930143629,0.4543171,76.628,76.601,0.46554603]
[1771930143933,0.4543171,76.626,76.601,0.46554603]
[1771930145636,5.24488426,76.62,76.592,0.46554603]
[1771930145935,0.4543171,76.619,76.592,0.46554603]
[1771930151659,0.4543171,76.637,76.6,5.24488426]
[1771930151948,0.4543171,76.643,76.61,5.24488426]
[1771930152439,0.4543171,76.643,76.611,0.46554603]
[1771930153740,0.4543171,76.641,76.613,0.46554603]
[1771930156546,13.0480167,76.64,76.614,13.05244472]
[1771930156844,0.4543171,76.639,76.615,0.46554603]
[1771930159227,13.04835721,76.638,76.616,13.05210399]
[1771930159424,0.4543171,76.637,76.617,0.46554603]
[1771930166760,0.46782242,76.635,76.617,0.46554603]
[1771930169057,0.46782242,76.639,76.619,0.49788965]
[1771930169558,37.85098067,76.66,76.631,0.49788965]
[1771930171348,13.0449529,76.658,76.631,0.49788965]
[1771930171548,0.46782242,76.657,76.631,0.49788965]
[1771930171757,0.46782242,76.649,76.611,0.49788965]
[1771930171958,0.46782242,76.649,76.613,0.49788965]
[1771930175560,5.2392303,76.63,76.609,0.49788965]
[1771930175775,0.46782242,76.619,76.59,0.49788965]
[1771930178549,0.46782242,76.617,76.592,0.49788965]
[1771930180661,0.46782242,76.617,76.594,0.49788965]
[1771930183763,0.46782242,76.615,76.588,0.49788965]
[1771930184652,65.24560563,76.634,76.588,0.49788965]
[1771930184653,0.46782242,76.626,76.591,0.49788965]
[1771930184852,0.46782242,76.626,76.601,0.49788965]
[1771930188166,0.46782242,76.624,76.601,0.49788965]
[1771930193477,0.46782242,76.622,76.601,0.49788965]
[1771930195757,0.46696459,76.62,76.601,0.49788965]
[1771930199874,13.05159294,76.619,76.601,0.49788965]
[1771930200195,0.46696459,76.618,76.601,0.49788965]
[1771930202273,0.46696459,76.628,76.601,0.49788965]
[1771930202476,5.2392303,76.67,76.621,0.48315972]
[1771930202782,32.60812855,76.668,76.641,0.48315972]
[1771930203276,52.15201929,76.699,76.64,5.2392303]
[1771930203277,13.03458074,76.719,76.665,0.28432314]
[1771930203477,0.2,76.72,76.691,0.48315972]
[1771930203704,0.2,76.75,76.71,5.2392303]
[1771930203979,0.2,76.76,76.725,0.28432314]
[1771930204193,5.2392303,76.74,76.713,0.48315972]
[1771930204385,0.46696459,76.739,76.715,0.48315972]
[1771930204767,0.46696459,76.739,76.693,0.28432314]
[1771930204768,0.46696459,76.738,76.693,0.28432314]
[1771930205078,0.46696459,76.719,76.693,13.03899964]
[1771930205862,13.03118362,76.739,76.7,5.2392303]
[1771930206162,0.46696459,76.742,76.71,5.2392303]
[1771930206885,0.46696459,76.742,76.712,13.03577015]
[1771930207080,5.70619489,76.74,76.713,0.48315972]
[1771930207284,0.46696459,76.729,76.706,0.48315972]
[1771930211187,0.46696459,76.719,76.688,0.48315972]
[1771930211367,5.2392303,76.72,76.688,0.48315972]
[1771930213388,0.46696459,76.717,76.689,0.48315972]
[1771930215089,0.46696459,76.717,76.69,5.2392303]
[1771930215268,0.46696459,76.717,76.691,0.48315972]
[1771930215472,3.69383402,76.747,76.66,3.69383402]
[1771930215473,0.2,76.76,76.71,10.4784606]
[1771930215672,103.9,76.88,76.692,0.28432314]
[1771930215673,0.5,76.788,76.75,5.2392303]
[1771930215877,0.5,76.788,76.76,5.2392303]
[1771930216584,0.5,76.786,76.75,5.2392303]
[1771930217582,0.5,76.786,76.751,13.0291462]
[1771930217793,0.5,76.784,76.751,13.0291462]
[1771930219170,0.5,76.79,76.76,5.2392303]
[1771930219372,0.5,76.79,76.734,162.90040919]
[1771930219373,0.5,76.803,76.77,5.2392303]
[1771930219594,0.5,76.799,76.76,5.2392303]
[1771930220691,0.5,76.799,76.734,267.15667107]
[1771930220692,0.5,76.789,76.75,5.2392303]
[1771930220899,0.5,76.789,76.76,5.2392303]
[1771930221278,0.5,76.787,76.761,13.02744883]
[1771930221492,0.2,76.81,76.761,13.02744883]
[1771930221677,162.66,76.899,76.8,5.21905583]
[1771930221678,1e-08,76.82,76.8,5.21905583]
[1771930221884,0.5,76.845,76.81,5.21905583]
[1771930222102,0.5,76.839,76.8,5.21905583]
[1771930223198,0.5,76.829,76.79,5.21905583]
[1771930223415,0.5,76.836,76.81,11.63861016]
[1771930225509,0.5,76.836,76.772,3.69383402]
[1771930225510,13.01104786,76.858,76.82,11.63861016]
[1771930225685,0.1,76.86,76.841,0.49641582]
[1771930225874,0.1,76.86,76.858,0.68135395]
[1771930226073,0.1,76.86,76.812,0.28432314]
[1771930226301,11.73861016,76.86,76.821,0.49641582]
[1771930226712,13.01083802,76.859,76.821,0.49641582]
[1771930227610,0.45295168,76.859,76.831,0.49641582]
[1771930228903,0.45295168,76.858,76.822,13.51352029]
[1771930229105,0.45295168,76.858,76.83,11.63861016]
[1771930229604,0.45295168,76.858,76.831,13.01557964]
[1771930229988,0.45295168,76.858,76.84,11.63861016]
[1771930231012,0.1,76.86,76.84,11.63861016]
[1771930231193,0.1,76.86,76.84,12.13502598]
[1771930231910,0.1,76.86,76.841,13.01388581]
[1771930233304,0.1,76.86,76.841,13.51030163]
[1771930234996,0.55295168,76.86,76.824,0.49641582]
[1771930235192,0.45295168,76.849,76.82,11.63861016]
[1771930235509,0.45295168,76.849,76.821,0.49641582]
[1771930236903,0.45295168,76.847,76.82,11.63861016]
[1771930237210,0.45295168,76.847,76.821,13.01727392]
[1771930237909,0.45295168,76.847,76.811,13.01885575]
[1771930238588,0.45295168,76.847,76.812,0.49641582]
[1771930238791,0.2,76.85,76.821,0.49641582]
[1771930238994,0.2,76.85,76.8,11.63861016]
[1771930238995,0.2,76.85,76.84,11.43861016]
[1771930239192,0.3,76.86,76.841,0.49641582]
[1771930240598,0.3,76.86,76.842,13.01371645]
[1771930241702,0.3,76.86,76.84,11.63861016]
[1771930241890,0.45295168,76.859,76.83,11.63861016]
[1771930242095,0.45295168,76.859,76.83,12.13502598]
[1771930242316,0.3,76.86,76.84,12.13502598]
[1771930243309,0.3,76.86,76.841,13.51030163]
[1771930244414,5.20772435,76.88,76.841,13.51030163]
[1771930244415,13.45906353,76.887,76.851,0.49641582]
[1771930244619,0.45295168,76.886,76.851,0.49641582]
[1771930245323,13.00635995,76.886,76.853,0.49641582]
[1771930245625,0.45295168,76.885,76.853,0.49641582]
[1771930245826,0.45295168,76.885,76.86,5.20772435]
[1771930246705,0.45295168,76.885,76.861,13.01049947]
[1771930247615,0.45295168,76.884,76.861,13.01049947]
[1771930248919,0.45295168,76.884,76.87,5.20772435]
[1771930249222,0.2,76.89,76.87,5.20772435]
[1771930249718,0.2,76.89,76.854,45.54089572]
[1771930249719,0.2,76.9,76.88,5.20772435]
[1771930249919,0.1,76.94,76.9,5.20772435]
[1771930249920,5.30772435,76.94,76.9,5.20772435]
[1771930251017,32.49460287,76.936,76.9,5.20772435]
[1771930251218,32.49460287,76.936,76.9,11.6076052]
[1771930251905,0.45295168,76.929,76.9,11.6076052]
[1771930252812,0.45295168,76.929,76.91,11.6076052]
[1771930253217,0.45295168,76.929,76.904,0.49641582]
[1771930253417,0.45295168,76.929,76.91,11.6076052]
[1771930254127,13.45195075,76.929,76.91,11.6076052]
[1771930254322,0.45295168,76.928,76.91,11.6076052]